Workbook

Sheet AutoCalc
A1: 1 | B1: Energiespeicher mit zentralem Oberbecken und gestrecktem Unterbecken in Regionen mit natürlichen Höhenunterschieden
A2: =A1+1 -> 2
A3: =A2+1 -> 3 | B3: Auslegungsparameter:
A4: 4 | C4: Oberbecken Außendurchmesser auf Geländeniveau | F4: Da | G4: 3000 | H4: [m]
A5: 5 | C5: maximale Pegeldifferenz im Oberbecken | F5: Po | G5: 90 | H5: [m]
A6: 6 | C6: maximale Pegeldifferenz im Unterbecken | F6: Pu | G6: 20 | H6: [m]
A7: 7 | C7: mittlere Breite des Unterbeckens | F7: Bmu | G7: 1000 | H7: [m] | J7: damit wird indirekt das Verhältnis von Uferlänge zu Beckeninhalt festgelegt.
A8: 8 | C8: prozentuale Volumenreserve | F8: pVr | G8: 0 | J8: Aushubvolumen, das nicht für den Wall eingesetzt wird
A9: 9
A10: 10 | B10: geometrische Daten der Landschaft
A11: 11 | C11: Höhenniveau des Oberbeckens | F11: Hno | G11: 120 | H11: [m]
A12: 12 | C12: Höhenniveau des Unterbeckens | F12: Hnu | G12: 0 | H12: [m] | J12: Bezugsebene
A13: 13 | C13: Höhenniveau der Wasserressource | F13: Hnw | G13: -24 | H13: [m] | J13: dieses sollte nicht über dem Niedrigstwasserstand des Unterbeckens liegen
A14: 14
A15: 15 | B15: geometrische Vorgaben für das Oberbecken
A16: 16 | C16: Außendurchmesser auf Geländeniveau | F16: Da | G16: =G4 -> 3000 | H16: [m] | I16: = | J16: =G16/1000 -> 3 | K16: [km]
A17: 17 | C17: Kronenbreite des Walles | F17: Bk | G17: 15 | H17: [m] | I17: = | J17: =G17/1000 -> 0.015 | K17: [km]
A18: 18 | C18: Freibordhöhe | F18: Hf | G18: 2 | H18: [m] | I18: = | J18: =G18/1000 -> 0.002 | K18: [km]
A19: 19 | C19: Ausbildung der Böschungen | G19: Höhe | I19: Länge | J19: Gefälle | K19: Winkel
A20: 20 | C20: Böschung der Außenseite | F20: Ba | G20: 1 | H20: [mhor/mver] | I20: 2 | J20: =G20/I20 -> 0.5 | K20: =DEGREES(ATAN(J20)) -> 26.56505118 | M20: Hinweis: | N20: [mhor/mver] = [mhorizontal/mvertikal]
A21: 21 | C21: Böschung der Innenseite | F21: Bi | G21: 1 | H21: [mhor/mver] | I21: 2 | J21: =G21/I21 -> 0.5 | K21: =DEGREES(ATAN(J21)) -> 26.56505118
A22: 22 | C22: Maximal vorgesehene Pegelabsenkung | F22: Po | G22: =G5 -> 90 | H22: [m] | I22: = | J22: =G22/1000 -> 0.09 | K22: [km]
A23: 23 | C23: Formfaktor zur Ermittlung der Wallhöhe | F23: Ff | G23: 0.2757464447 | J23: je nach Durchmesser / Höhen Verhältnis des Ringwalls wird damit eine Aushubreserve gesteuert
A24: 24 | C24: Wallumfang am Außenfuß | F24: Uwa | G24: =G16*PI() -> 9424.777961 | H24: [m] | I24: = | J24: =G24/1000 -> 9.424777961 | K24: [km] | M24: = Da * π
A25: 25
A26: 26 | B26: geometrische Vorgaben für das Unterbecken
A27: 27 | C27: Stauziel Unterbecken unter Gelände Hnu | F27: To | G27: 1 | H27: [m] | I27: = | J27: =G27/1000 -> 0.001 | K27: [km]
A28: 28 | C28: Pegelschwankung Unterbecken | F28: Pu | G28: =G6 -> 20 | H28: [m] | I28: = | J28: =G28/1000 -> 0.02 | K28: [km]
A29: 29 | C29: Absenkziel Unterbecken | F29: Tu | G29: =G27+G28 -> 21 | H29: [m] | I29: = | J29: =G29/1000 -> 0.021 | K29: [km] | M29: = To + Pu
A30: 30 | C30: Mindestwasserstand im Unterbecken | F30: Tmu | G30: 3 | H30: [m] | I30: = | J30: =G30/1000 -> 0.003 | K30: [km]
A31: 31 | C31: Ausgrabungstiefe Unterbecken | F31: Ta | G31: =G29+G30 -> 24 | H31: [m] | I31: = | J31: =G31/1000 -> 0.024 | K31: [km] | M31: = Tu + Tmu
A32: 32 | C32: Restwasservolumen im Unterbecken | F32: Vru | G32: =G36*G30*(G35-I34*(2*G29+G30)) -> 42721547.5 | H32: [m³] | I32: = | J32: =G32/1000/1000/1000 -> 0.0427215475 | K32: [km³] | M32: = Tmu * Lmu * (Bmu - BA * (2 * Tu + Tmu))
A33: 33 | C33: Böschungsverhältnisse | G33: Höhe | I33: Länge | J33: Gefälle | K33: Winkel
A34: 34 | C34: Gefälle von außen ins Unterbecken | F34: Bu | G34: 1 | H34: [mhor/mver] | I34: 5 | J34: =G34/I34 -> 0.2 | K34: =DEGREES(ATAN(J34)) -> 11.30993247
A35: 35 | C35: mittlere Breite des Unterbeckens | F35: Bmu | G35: =G7 -> 1000 | H35: [m] | I35: = | J35: =G35/1000 -> 1 | K35: [km]
A36: 36 | C36: mittlere Länge des Unterbeckens | F36: Lmu | G36: 18374.85914 | H36: [m] | I36: = | J36: =G36/1000 -> 18.37485914 | K36: [km]
A37: 37 | C37: Fläche des Unterbeckens | F37: Au | G37: =G35*G36 -> 18374859.14 | H37: [m²] | I37: = | J37: =G37/1000/1000 -> 18.37485914 | K37: [km²] | M37: = Bmu * Lmu
A38: 38 | C38: Aushubvolumen des Unterbeckens | F38: Vb | G38: =G31*G36*(G35-G31*I34) -> 388077025 | H38: [m³] | I38: = | J38: =G38/1000/1000/1000 -> 0.388077025 | K38: [km³] | M38: = Ta * Lmu * (Bmu - Bu * Ta)
A39: 39 | C39: Austauschvolumen des Unterbeckens | F39: Vau | G39: =G28*G36*(G35-I34*(2*G27+G28)) -> 327072492.7 | H39: [m²] | I39: = | J39: =G39/1000/1000/1000 -> 0.3270724927 | K39: [km³] | M39: = Pu * Lmu * (Bmu - Bu * (2 * To + Pu))
A40: 40 | C40: fiktives Volumen eines geradlinigen Walls zur Höheberechnung | F40: Vf | G40: =G38*(1+G23) -> 495087885 | H40: [m³] | I40: = | J40: =G40/1000/1000/1000 -> 0.495087885 | K40: [km³] | M40: = Vb * (1 + Ff)
A41: 41
A42: 42 | B42: Ausbildung des Ringwalls
A43: 43 | C43: Wallhöhe aus Aushubvolumen des Unterbeckens | F43: Hw | G43: =(2*G40/G24/(I20+I21) +(G17/(I20+I21))^2)^0.5-G17/(I20+I21) -> 158.3588849 | H43: [m] | I43: = | J43: =G43/1000 -> 0.1583588849 | K43: [km] | M43: = (2 * Vf / Uwa / (Ba + Bi) + (Bk / (Ba +Bi))^0,5 - Bk / (Ba + Bi)
A44: 44 | C44: Wallfußbreite | F44: Bw | G44: =G17+(I20+I21)*G43 -> 648.4355395 | H44: [m] | I44: = | J44: 0.6484355395 | K44: [km] | M44: = Bk + (Ba + Bi) * Hw
A45: 45 | C45: Wallinnendurchmesser am Beckenboden | F45: Di | G45: =G16-2*G44 -> 1703.128921 | H45: [m] | I45: = | J45: 1.703128921 | K45: [km] | M45: = Da - 2 * Bw
A46: 46 | C46: Wallinnendurchmesser bei maximalem Füllstand | F46: Dif | G46: =G45+2*(G43-G18)*I21 -> 2328.564461 | H46: [m] | I46: = | J46: 2.328564461 | K46: [km] | M46: = Di - 2 * (Hw - Hf) * Bi
A47: 47 | C47: Wallinnendurchmesser bei minimalem Füllstand | F47: Dil | G47: =G46-2*G22*I21 -> 1968.564461 | H47: [m] | I47: = | J47: 1.968564461 | K47: [km] | M47: = Di - 2 * (Hw - Hf) * Bi
A48: 48 | C48: Walldurchmesser am inneren Kronenrand | F48: Dki | G48: =G45+2*(G43)*I21 -> 2336.564461 | H48: [m] | I48: = | J48: 2.336564461 | K48: [km] | M48: = Di - 2 * Hw * Bi
A49: 49 | C49: Walldurchmesser am äußeren Kronenrand | F49: Dka | G49: =G48+2*G17 -> 2366.564461 | H49: [m] | I49: = | J49: 2.366564461 | K49: [km] | M49: = Dki + 2 * Bk
A50: 50 | C50: exaktes Wallvolumen bei Idealform | F50: Vw | G50: =PI()/12*G43*(G16^2+G16*G49+G49^2-G48^2-G48*G45-G45^2) -> 388077025 | H50: [m³] | I50: = | J50: =G50/1000/1000/1000 -> 0.388077025 | K50: [km³] | M50: = π / 12 * Hw * (Da^2 + Da * Dka + Dka^2 - Dki^2 - Dki * Di - Di^2)
A51: 51 | C51: Volumenreserve zur freien Verwendung | F51: Vr | G51: =G38-G50 -> -0.006812036037 | H51: [m³] | I51: = | J51: =G51/1000/1000/1000 -> -6.812036037e-12 | K51: [km³] | M51: = Vb - Vw
A52: 52 | C52: prozentuale Volumenreserve | F52: pVi | G52: =G51/G50 -> -1.755330926e-11 | M52: = Vr / Vw
A53: 53 | C53: Seitenlänge der inneren Wallflanke | F53: Sw | G53: =(G43^2+(G43*I21)^2)^(1/2) -> 354.1012314 | H53: [m] | I53: = | J53: =G53/1000 -> 0.3541012314 | K53: [km] | M53: = (Hw^2 + (Hw * Bi)^2)^0,5
A54: 54 | C54: Innere Oberfläche des Walles | F54: Awi | G54: =G53*PI()/2*(G45+G48) -> 2246961.943 | H54: [m²] | I54: = | J54: =G54/1000/1000 -> 2.246961943 | K54: [km²] | M54: = Sw * π / 2 * (Di + Dki)
A55: 55
A56: 56 | B56: resultierende Daten des Oberbeckens
A57: 57 | C57: Oberbeckenwasservolumen | F57: Vo | G57: =PI()/12*(G43-G18)*(G45^2+G45*G46+G46^2) -> 503034007.9 | H57: [m³] | I57: = | J57: =G57/1000/1000/1000 -> 0.5030340079 | K57: [km3] | M57: = π / 12 * (Hw - Hf) * (Dif^2 + Dif * Di + Di^2)
A58: 58 | C58: abgegebenes Volumen bei maximaler Pegelabsenkung | F58: Vao | G58: =PI()/12*G22*(G47^2+G47*G46+G46^2) -> 327072492.7 | H58: [m³] | I58: = | J58: =G58/1000/1000/1000 -> 0.3270724927 | K58: [km3] | M58: = π / 12 * Po * (Dil^2 + Dil * Dif + Dif^2)
A59: 59 | C59: Bodenfläche innerhalb des Walls | F59: Ab | G59: =PI()/4*G45^2 -> 2278163.708 | H59: [m²] | I59: = | J59: =G59/1000/1000 -> 2.278163708 | K59: [km²] | M59: = π / 4 * Di^2
A60: 60 | C60: abzudichtende Gesamtfläche des Oberbeckens | F60: Ad | G60: =G54+G59 -> 4525125.651 | H60: [m²] | I60: = | J60: =G60/1000/1000 -> 4.525125651 | K60: [km²] | M60: = Awi + Ab
A61: 61 | C61: Flächenbedarf des Oberbeckens | F61: Ao | G61: =G16^2*PI()/4 -> 7068583.471 | H61: [m²] | I61: = | J61: =G61/1000/1000 -> 7.068583471 | K61: [km²] | M61: = π / 4 * Da^2
A62: 62
A63: 63 | B63: resultierende Daten der Gesamtanlage
A64: 64 | C64: Gesamtflächenbedarf | F64: Ag | G64: =G37+G61 -> 25443442.61 | H64: [m²] | I64: = | J64: =G64/1000/1000 -> 25.44344261 | K64: [km²] | M64: = Au + Ao
A65: 65 | C65: Wasservolumenbedarf | F65: Vg | G65: =G57+G32 -> 545755555.4 | H65: [m³] | I65: = | J65: =G65/1000/1000/1000 -> 0.5457555554 | K65: [km³] | M65: = Vo + Vru
A66: 66
A67: =A66+1 -> 67 | B67: energietechnische Daten
A68: 68 | C68: Höhendifferenz aufgeladen | F68: Hmax | G68: =G29+G11+G43-G18 -> 297.3588849 | H68: [m] | I68: = | J68: =G68/1000 -> 0.2973588849 | K68: [km] | M68: = Tu + Hno + Hw - Hf
A69: 69 | C69: Höhendifferenz endladen | F69: Hmin | G69: =G68-G28-G22 -> 187.3588849 | H69: [m] | I69: = | J69: 0.1873588849 | K69: [km] | M69: = Hmax - Po - Pu
A70: 70 | C70: mittlere Höhendifferenz der Wasserflächen | F70: Hmit | G70: =(G68+G69)/2 -> 242.3588849 | H70: [m] | I70: = | J70: 0.2423588849 | K70: [km] | M70: = (Hmax + Hmin) / 2
A71: 71 | C71: Austauschvolumenschwerpunkt des Oberbeckens | F71: Hso | G71: =G11 + G43 - G18 - G22/4*(G46^2+2*G46*G47+3*G47^2)/(G46^2+G46*G47+G47^2) -> 233.8663247 | H71: [m] | I71: = | J71: 0.2338663247 | K71: [km] | M71: = Hno + Hw - Hf - Po /4 *(Dif^2 + 2 * Dif * Dil + 3 * Dil^2) / (Dif^2 + Dif * Dil + Dil^2)
A72: 72 | C72: Austauschvolumenschwerpunkt des Unterbeckens | F72: Hsu | G72: =-(G27+G28/3*(G35-2*I34*G27 + 2*(G35-2*I34*G29)) / (G35-2*I34*G27 + G35-2*I34*G29)) -> -10.62546816 | H72: [m] | I72: = | J72: -0.01062546816 | K72: [km] | M72: = -(To + Pu / 3 * (Bmu - 2 * Bu * To + 2 * (Bmu - 2 * Bu * Tu)) / (Bmu - 2 * Bu * To + Bmu - 2 * Bu * Tu))
A73: 73 | C73: Höhendifferenz Austauschvolumenschwerpunkte | F73: Hsd | G73: =G71-G72 -> 244.4917928 | H73: [m] | I73: = | J73: 0.2444917928 | K73: [km] | M73: = Hso + Hsu
A74: 74 | C74: Höhenverhältnis | F74: Hv [-] | G74: =G68/G69 -> 1.587108533 | M74: = Hmax / Hmin
A75: 75 | C75: Speicherendladungswirkungsgrad | F75: Eta | G75: 0.93
A76: 76 | C76: Speicherkapazität | F76: Kap | G76: =G58*9.81*G73*G75/3600 -> 202655204.3 | H76: [kWh] | I76: = | J76: =G76/1000/1000 -> 202.6552043 | K76: [GWh] | M76: = Vao * 9,81 * Hsd * Eta / 3600
A77: 77
A78: 78 | B78: technische Auslegung des Speichersystems
A79: 79 | C79: Verhältnis von Spitzenleistung zu Durchschnittsleistung | G79: 1.6
A80: 80 | C80: Leistung bei Speicherreichweite in Tagen | F80: Durchschnittsleistung | J80: Spitzenleistung
A81: 81 | C81: 0.5 | D81: =C81*24 -> 12 | E81: [h] | F81: Pd05 | G81: =G$76/C81/24/1000 -> 16887.93369 | H81: [MW] | J81: =G81*G$79 -> 27020.69391 | K81: Pn05 [MW]
A82: 82 | C82: 1 | D82: =C82*24 -> 24 | E82: [h] | F82: Pd05 | G82: 8443.966847 | H82: [MW] | J82: 13510.34695 | K82: Pn05 [MW]
A83: 83 | C83: 2 | D83: 48 | E83: [h] | F83: Pd05 | G83: 4221.983423 | H83: [MW] | J83: 6755.173477 | K83: Pn05 [MW]
A84: 84 | C84: 5 | D84: 120 | E84: [h] | F84: Pd05 | G84: 1688.793369 | H84: [MW] | J84: 2702.069391 | K84: Pn05 [MW]
A85: 85 | C85: 7 | D85: 168 | E85: [h] | F85: Pd07 | G85: 1206.280978 | H85: [MW] | J85: 1930.049565 | K85: Pn07 [MW]
A86: 86 | C86: 10 | D86: 240 | E86: [h] | F86: Pd10 | G86: 844.3966847 | H86: [MW] | J86: 1351.034695 | K86: Pn10 [MW]
A87: 87 | C87: 14 | D87: 336 | E87: [h] | F87: Pd14 | G87: 603.1404891 | H87: [MW] | J87: 965.0247825 | K87: Pn14 [MW]
A88: 88 | C88: 20 | D88: 480 | E88: [h] | F88: Pd20 | G88: 422.1983423 | H88: [MW] | J88: 675.5173477 | K88: Pn20 [MW]
A89: 89
A90: 90 | B90: Anlagenkennwerte
A91: 91 | C91: flächenspezifische Speicherkapazität | G91: =G76/G64 -> 7.964928623 | H91: [kWh/m²] | J91: =1/G91 -> 0.1255504032 | K91: [m²/kWh]
A92: 92 | C92: erdbauvolumenspezifische Kapazität | G92: =G76/G38 -> 0.5222035608 | H92: [kWh/m³] | J92: =1/G92 -> 1.914962048 | K92: [m³/kWh]
A93: 93
A94: 94 | B94: Kennwerte für Dichtungsmaßnahmen
A95: 95 | C95: Länge einer Innendichtung in der Mitte des Ringwalls | F95: Uwid | G95: =(G48+G49)/2*PI() -> 7387.657634 | H95: [m] | I95: = | J95: =G95/1000 -> 7.387657634 | K95: [km] | M95: = (Dki + Dka) / 2 * π
A96: 96 | C96: Fläche der Innendichtung im Ringwall | F96: Awid | G96: =G43*G95 -> 1169901.225 | H96: [m²] | I96: = | J96: =G96/1000/1000 -> 1.169901225 | K96: [km²] | M96: = Uwid * Hw
A97: 97 | C97: Tiefe der Abdichtung unter dem Ringwall des Oberbeckens | F97: Tdo | G97: 20 | H97: [m] | I97: = | J97: =G97/1000 -> 0.02 | K97: [km]
A98: 98 | C98: Fläche der Abdichtung unter dem Ringwall | F98: Audo | G98: =G95*G97 -> 147753.1527 | H98: [m²] | I98: = | J98: =G98/1000/1000 -> 0.1477531527 | K98: [km²] | M98: = Uwid * Tdo
A99: 99 | C99: Länge der Abdichtung zum Grundwasser des Unterbeckens | F99: Ldu | G99: =2*(G35+G36) -> 38749.71828 | H99: [m] | I99: = | J99: =G99/1000 -> 38.74971828 | K99: [km] | M99: = 2 * (Bmu + Lmu)
A100: 100 | C100: Tiefe der Abdichtung des Unterbeckens gegen Grundwasser | F100: Tdu | G100: 30 | H100: [m] | I100: = | J100: =G100/1000 -> 0.03 | K100: [km]
A101: 101 | C101: Fläche der Abdichtung des Unterbeckens gegen Grundwasser | F101: Audu | G101: =G99*G100 -> 1162491.548 | H101: [m²] | I101: = | J101: =G101/1000/1000 -> 1.162491548 | K101: [km²] | M101: = Ldu * Tdu
A102: 102
A103: 103 | O103: spezifische Kosten bzgl. der
A104: 104 | O104: mittleren bedarfsgerecht
A105: 105 | F105: geschätzt | O105: abrufbaren Leistung von | R105: bezogen auf die
A106: 106 | B106: Kostenermittlung | F106: von ... bis | G106: Preis pro Einheit | J106: Menge | M106: Kosten | P106: =G87 -> 603.1404891 | Q106: [MW] | R106: Speicherkapazität
A107: 107 | C107: Grunderwerb | F107: 1 ... 10 | G107: 3 | H107: [€/m²] | J107: =G64 -> 25443442.61 | K107: [m²] | M107: =G107*J107/10^6 -> 76.33032783 | N107: Mio € | P107: =M107/P$106*1000 -> 126.5548064 | Q107: [€/kW] | R107: =M107/$G$76*1000*1000 -> 0.3766512096 | S107: [€/kWh]
A108: 108 | C108: Umsiedlungen | G108: 0.5 | H108: [M€/Anw] | J108: 20 | K108: [Stück] | M108: =G108*J108 -> 10 | N108: Mio € | P108: 16.57988509 | Q108: [€/kW] | R108: 0.04934489609 | S108: [€/kWh]
A109: =A108+1 -> 109 | C109: Flächen vorbereiten | F109: 2 ... 4 | G109: 3 | H109: [€/m²] | J109: =G64 -> 25443442.61 | K109: [m²] | M109: =G109*J109/10^6 -> 76.33032783 | N109: Mio € | P109: 126.5548064 | Q109: =Q$107 -> [€/kW] | R109: 0.3766512096 | S109: =S$107 -> [€/kWh]
A110: 110 | C110: Bau und Verlegung von Straßen um das Unterbecken | G110: 500 | H110: [€/m] | J110: =G99 -> 38749.71828 | K110: [m] | M110: =G110*J110/10^6 -> 19.37485914 | N110: Mio € | P110: 32.12329381 | Q110: [€/kW] | R110: 0.09560504111 | S110: [€/kWh]
A111: 111 | C111: Bau und Verlegung von Straßen um das Oberbecken | G111: 500 | H111: [€/m] | J111: =G24 -> 9424.777961 | K111: [m] | M111: =G111*J111/10^6 -> 4.71238898 | N111: Mio € | P111: 7.813086778 | Q111: [€/kW] | R111: 0.02325323446 | S111: [€/kWh]
A112: 112 | C112: Straße auf der Dammkrone des Oberbeckens | G112: 500 | H112: [€/m] | J112: =G95 -> 7387.657634 | K112: [m] | M112: =G112*J112/10^6 -> 3.693828817 | N112: Mio € | P112: 6.124325731 | Q112: [€/kW] | R112: 0.01822715992 | S112: [€/kWh]
A113: 113 | C113: Auffahrt auf die Dammkrone des Oberbeckens (10% Steigung) | G113: 1000 | H113: [€/m] | J113: =G43*10 -> 1583.588849 | K113: [m] | M113: =G113*J113/10^6 -> 1.583588849 | N113: Mio € | P113: 2.625572114 | Q113: [€/kW] | R113: 0.007814202719 | S113: [€/kWh]
A114: 114 | C114: Brücken über das Unterbecken | G114: 10 | H114: [M€] | J114: 1 | K114: [Stück] | M114: =G114*J114 -> 10 | N114: Mio € | P114: 16.57988509 | Q114: [€/kW] | R114: 0.04934489609 | S114: [€/kWh]
A115: 115 | C115: Bauwerke zum und am Gewässer zur Befüllung der Anlage | G115: 20 | H115: [M€] | M115: =G115 -> 20 | N115: Mio € | P115: 33.15977017 | Q115: [€/kW] | R115: 0.09868979219 | S115: [€/kWh]
A116: 116 | C116: Landschaftsbau für Speicher | F116: 3 ... 12 | G116: 6 | H116: [€/m³] | J116: =G38 -> 388077025 | K116: [m³]
A117: 117 | C117: 1. Bodenart: | G117: 1
A118: 118 | D118: Lösen | G118: 1 | H118: [€/m³]
A119: 119 | D119: Fördern | G119: 1 | H119: [€/m³]
A120: 120 | D120: Einbauen | G120: 1 | H120: [€/m³]
A121: 121 | D121: Verdichten | G121: 3 | H121: [€/m³]
A122: 122 | D122: Bodenverbesserung | G122: 0 | H122: [€/m³]
A123: 123 | D123: Kosten zur 1. Bodenart | G123: =SUM(G118:G122) -> 6 | H123: [€/m³] | J123: =G117*J$116 -> 388077025 | K123: [m³] | M123: =G123*J123/10^6 -> 2328.46215 | N123: Mio € | P123: =M123/P$106*1000 -> 3860.563488 | Q123: =Q$107 -> [€/kW] | R123: =M123/$G$76*1000*1000 -> 11.48977229 | S123: =S$107 -> [€/kWh]
A124: 124 | C124: 2. Bodenart: | G124: 0
A125: 125 | D125: Lösen | G125: 1 | H125: [€/m³]
A126: 126 | D126: Fördern | G126: 1 | H126: [€/m³]
A127: 127 | D127: Einbauen | G127: 1 | H127: [€/m³]
A128: 128 | D128: Verdichten | G128: 3 | H128: [€/m³]
A129: 129 | D129: Bodenverbesserung | G129: 0 | H129: [€/m³]
A130: 130 | D130: Kosten zur 2. Bodenart | G130: =SUM(G125:G129) -> 6 | H130: [€/m³] | J130: =G124*J$116 -> 0 | K130: [m³] | M130: =G130*J130/10^6 -> 0 | N130: Mio € | P130: =M130/P$106*1000 -> 0 | Q130: =Q$107 -> [€/kW] | R130: =M130/$G$76*1000*1000 -> 0 | S130: =S$107 -> [€/kWh]
A131: 131 | C131: 3. Bodenart: | G131: =100%-G117-G124 -> 0
A132: 132 | D132: Lösen | G132: 1 | H132: [€/m³]
A133: 133 | D133: Fördern | G133: 1 | H133: [€/m³]
A134: 134 | D134: Einbauen | G134: 1 | H134: [€/m³]
A135: 135 | D135: Verdichten | G135: 3 | H135: [€/m³]
A136: 136 | D136: Bodenverbesserung | G136: 0 | H136: [€/m³]
A137: 137 | D137: Kosten zur 3. Bodenart | G137: =SUM(G132:G136) -> 6 | H137: [€/m³] | J137: =G131*J$116 -> 0 | K137: [m³] | M137: =G137*J137/10^6 -> 0 | N137: Mio € | P137: =M137/P$106*1000 -> 0 | Q137: =Q$107 -> [€/kW] | R137: =M137/$G$76*1000*1000 -> 0 | S137: =S$107 -> [€/kWh]
A138: =A137+1 -> 138 | C138: Oberflächenabdichtung Oberbecken (Alternative 1) | F138: ... 65 | G138: 60 | H138: [€/m²] | J138: =G60 -> 4525125.651 | K138: [m²] | M138: 271.5075391 | N138: Mio € | P138: 450.1563798 | Q138: =Q$107 -> [€/kW] | R138: 1.33975113 | S138: [€/kWh]
A139: 139 | C139: Innendichtung im Wall des Oberbeckens (Alternative 2) | F139: ... 200 | G139: 0 | H139: [€/m²] | J139: =G96 -> 1169901.225 | K139: [m²] | M139: 0 | N139: Mio € | P139: 0 | Q139: [€/kW] | R139: 0 | S139: [€/kWh]
A140: 140 | C140: + Tiefenabdichtung unter dem Wall des Oberbeckens | F140: ... 200 | G140: 0 | H140: [€/m²] | J140: =G98 -> 147753.1527 | K140: [m²] | M140: 0 | N140: Mio € | P140: 0 | Q140: [€/kW] | R140: 0 | S140: [€/kWh]
A141: 141 | C141: Tiefenabdichtung zur Grundwasserabtrennung des Unterbeckens | F141: 50 ... 200 | G141: 200 | H141: [€/m²] | J141: =G101 -> 1162491.548 | K141: [m²] | M141: 232.4983097 | N141: Mio € | P141: 385.4795257 | Q141: [€/kW] | R141: 1.147260493 | S141: [€/kWh]
A142: 142 | C142: Wasserfüllung | F142: 2 ... 10 | G142: 0.1 | H142: [€/m³] | J142: =G65 -> 545755555.4 | K142: [m³] | M142: 54.57555554 | N142: Mio € | P142: 90.48564395 | Q142: [€/kW] | R142: 0.2693025118 | S142: [€/kWh]
A143: 143 | C143: Pumpspeichertechnik für ersten Maschinensatz | F143: 200 ... 600 | G143: 400 | H143: [€/kW] | J143: =P$106*G$79 -> 965.0247825 | K143: [MW] | M143: =G143*J143/10^3 -> 386.009913 | N143: Mio € | P143: 640 | Q143: [€/kW] | R143: =M143/$G$76*1000*1000 -> 1.904761905 | S143: [€/kWh]
A144: 144 | C144: + für zweiten Maschinensatz bei Höhenverhältnissen > ca. 1,3 | F144: 200 ... 600 | G144: 500 | H144: [€/kW] | J144: =J143 -> 965.0247825 | K144: [MW] | M144: =G144*J144/10^3 -> 482.5123912 | N144: Mio € | P144: 800 | Q144: [€/kW] | R144: =M144/$G$76*1000*1000 -> 2.380952381 | S144: [€/kWh]
A145: 145 | C145: + für dritten Maschinensatz bei Höhenverhältnissen > ca. 1,69 | F145: 200 ... 600 | G145: 0 | H145: [€/kW] | J145: =J144 -> 965.0247825 | K145: [MW] | M145: =G145*J145/10^3 -> 0 | N145: Mio € | P145: 0 | Q145: [€/kW] | R145: 0 | S145: [€/kWh]
A146: 146 | C146: Überwachungssysteme für Böschungen, Leckagen, ... | G146: 10 | H146: [M€] | M146: =G146 -> 10 | N146: Mio € | P146: =M146/P$106*1000 -> 16.57988509 | Q146: [€/kW] | R146: =M146/$G$76*1000*1000 -> 0.04934489609 | S146: [€/kWh]
A147: 147 | C147: Pauschale Kosten für Krafthaus, Toilette, Kran, ... | F147: 5 ... 10 | G147: 7 | H147: [M€] | M147: =G147 -> 7 | N147: Mio € | P147: 11.60591956 | Q147: [€/kW] | R147: 0.03454142726 | S147: [€/kWh]
A148: 148 | C148: Netzanbindung | F148: 0,7 ... 2,5 | G148: 1 | H148: [M€/km] | J148: 10 | K148: [km] | M148: =G148*J148 -> 10 | N148: Mio € | P148: 16.57988509 | Q148: [€/kW] | R148: 0.04934489609 | S148: [€/kWh]
A149: 149 | C149: Pauschale Kosten für Ausgleichsmaßnahmen | F149: ... 20 | G149: 10 | H149: [M€] | M149: =G149 -> 10 | N149: Mio € | P149: 16.57988509 | Q149: [€/kW] | R149: 0.04934489609 | S149: [€/kWh]
A150: 150 | C150: Energiespeicherkosten | M150: =SUM(M107:M147) -> 3994.59118 | N150: Mio € | P150: =M150/P$106*1000 -> 6622.986274 | Q150: [€/kW] | R150: 19.71126867 | S150: [€/kWh]
A151: 151
A152: 152 | B152: jährliche Speicherbetriebskosten bezogen auf Investitionskosten | G152: 0.01 | M152: =M150*G152 -> 39.9459118 | N152: [M€/a]
A153: 153
A154: 154 | B154: Investitionskostenanteile des Speichers an den Stromkosten des Gesamtsystems | M154: Annuitäten bei einem Zissatz von
A155: 155 | C155: bei | E155: Jahresstromerzeugung | G155: =P106*24*365/1000 -> 5283.510684 | H155: [GWh] | M155: 0.02 | N155: 0.03 | O155: 0.05 | P155: 0.08
A156: 156 | C156: 1 | D156: jähriger Betrachtung | G156: =$M$150/G$155/C156 -> 0.7560486614 | H156: [€/kWh] | I156: = | J156: =G156*100 -> 75.60486614 | K156: [ct/kWh] | M156: =$J156*'Kapitalkosten 2% Zins'!$C$7 -> 77.11696346 | N156: =$J156*'Kapitalkosten 3% Zins'!$C$7 -> 77.87301212 | O156: =$J156*'Kapitalkosten 5% Zins'!$C$7 -> 79.38510945 | P156: =$J156*'Kapitalkosten 8% Zins'!$C$7 -> 81.65325543
A157: 157 | C157: 2 | D157: =D156 -> jähriger Betrachtung | G157: 0.3780243307 | H157: =H156 -> [€/kWh] | I157: = | J157: 37.80243307 | K157: =K156 -> [ct/kWh] | M157: =$J157*'Kapitalkosten 2% Zins'!D7 -> 38.9402863 | N157: =$J157*'Kapitalkosten 3% Zins'!D7 -> 39.510347 | O157: =$J157*'Kapitalkosten 5% Zins'!D7 -> 40.66029701 | P157: =$J157*'Kapitalkosten 8% Zins'!D7 -> 42.39542869
A158: 158 | C158: 5 | D158: =D157 -> jähriger Betrachtung | G158: 0.1512097323 | H158: =H157 -> [€/kWh] | I158: = | J158: 15.12097323 | K158: [ct/kWh] | M158: =$J158*'Kapitalkosten 2% Zins'!E7 -> 16.0403284 | N158: =$J158*'Kapitalkosten 3% Zins'!E7 -> 16.50832252 | O158: =$J158*'Kapitalkosten 5% Zins'!E7 -> 17.46245593 | P158: =$J158*'Kapitalkosten 8% Zins'!E7 -> 18.93523872
A159: 159 | C159: 10 | D159: jähriger Betrachtung | G159: 0.07560486614 | H159: [€/kWh] | I159: = | J159: 7.560486614 | K159: [ct/kWh] | M159: =$J159*'Kapitalkosten 2% Zins'!F7 -> 8.417089747 | N159: =$J159*'Kapitalkosten 3% Zins'!F7 -> 8.863158457 | O159: =$J159*'Kapitalkosten 5% Zins'!F7 -> 9.791208189 | P159: =$J159*'Kapitalkosten 8% Zins'!F7 -> 11.2673932
A160: 160 | C160: 15 | D160: jähriger Betrachtung | G160: 0.05040324409 | H160: [€/kWh] | I160: = | J160: 5.040324409 | K160: [ct/kWh] | M160: =$J160*'Kapitalkosten 2% Zins'!G7 -> 5.883948707 | N160: =$J160*'Kapitalkosten 3% Zins'!G7 -> 6.333041612 | O160: =$J160*'Kapitalkosten 5% Zins'!G7 -> 7.283772804 | P160: =$J160*'Kapitalkosten 8% Zins'!G7 -> 8.832916511
A161: 161 | C161: 20 | D161: jähriger Betrachtung | G161: 0.03780243307 | H161: [€/kWh] | I161: = | J161: 3.780243307 | K161: [ct/kWh] | M161: =$J161*'Kapitalkosten 2% Zins'!H7 -> 4.623691194 | N161: =$J161*'Kapitalkosten 3% Zins'!H7 -> 5.081705473 | O161: =$J161*'Kapitalkosten 5% Zins'!H7 -> 6.066761274 | P161: =$J161*'Kapitalkosten 8% Zins'!H7 -> 7.700582431
A162: 162 | C162: 25 | D162: jähriger Betrachtung | G162: 0.03024194646 | H162: [€/kWh] | I162: = | J162: 3.024194646 | K162: [ct/kWh] | M162: =$J162*'Kapitalkosten 2% Zins'!I7 -> 3.872481244 | N162: =$J162*'Kapitalkosten 3% Zins'!I7 -> 4.341760648 | O162: =$J162*'Kapitalkosten 5% Zins'!I7 -> 5.364316462 | P162: =$J162*'Kapitalkosten 8% Zins'!I7 -> 7.082588255
A163: 163 | C163: 30 | D163: =D161 -> jähriger Betrachtung | G163: 0.02520162205 | H163: =H161 -> [€/kWh] | I163: = | J163: 2.520162205 | K163: =K161 -> [ct/kWh] | M163: =$J163*'Kapitalkosten 2% Zins'!J7 -> 3.375757273 | N163: =$J163*'Kapitalkosten 3% Zins'!J7 -> 3.85736027 | O163: =$J163*'Kapitalkosten 5% Zins'!J7 -> 4.918172147 | P163: =$J163*'Kapitalkosten 8% Zins'!J7 -> 6.715753445
A164: 164 | C164: 50 | D164: jähriger Betrachtung | G164: 0.01512097323 | H164: [€/kWh] | I164: = | J164: 1.512097323 | K164: [ct/kWh] | M164: =$J164*'Kapitalkosten 2% Zins'!K7 -> 2.405973655 | N164: =$J164*'Kapitalkosten 3% Zins'!K7 -> 2.938420925 | O164: =$J164*'Kapitalkosten 5% Zins'!K7 -> 4.141400192 | P164: =$J164*'Kapitalkosten 8% Zins'!K7 -> 6.180161012
A165: 165
A166: 166 | B166: Betriebskosten des Speichers bezogen auf die Stromkosten des Gesamtsystems | G166: =M152/G155 -> 0.007560486614 | H166: =H164 -> [€/kWh] | I166: = | J166: =G166*100 -> 0.7560486614 | K166: =K164 -> [ct/kWh]
A167: 167 | C167: auf Jahreserzeugung bezogene Speicherkosten bei 50-jähriger Betrachtung | G167: =G164+G166 -> 0.02268145984 | H167: =H166 -> [€/kWh] | I167: =I166 -> = | J167: =J164+$J166 -> 2.268145984 | K167: =K166 -> [ct/kWh] | M167: =M164+$J166 -> 3.162022317 | N167: =N164+$J166 -> 3.694469586 | O167: =O164+$J166 -> 4.897448853 | P167: =P164+$J166 -> 6.936209674
A168: 168
A169: 169 | B169: Betrachtung einer vollständigen Ringwallspeicher-Hybridenergieanlage
A170: 170
A171: 171 | B171: technische Daten der regenerativen Erzeugungsanlagen | F171: Die Auslegung hat so zu erfolgen, dass die oben angesetzte Speicherreichweite genügt, um die zu erwartenden Flauten zu überbrücken!
A172: 172 | C172: Windenergieanteil der Kombination | G172: 0.8
A173: 173 | C173: Solarenergieanteil | G173: =1-G172 -> 0.2
A174: 174 | C174: Erzeugungsreserve | G174: 0.3
A175: 175 | C175: durchschnittlich verfügbare Erzeugungsleistung des Gesamtsystems | G175: =P106*(1+G174) -> 784.0826358 | H175: [MW]
A176: 176 | C176: durchschnittlich verfügbare Windleistung | G176: =G$175*G172 -> 627.2661086 | H176: [MW]
A177: 177 | C177: durchschnittlich verfügbare Solarleistung | G177: =G$175*G173 -> 156.8165272 | H177: [MW]
A178: 178 | C178: Benutzungsgrad der Windenergieanlagen | G178: 0.5 | I178: = | J178: =24*365*G178 -> 4380 | K178: Volllaststunden
A179: 179 | C179: Benutzungsgrad der Solarenergieanlagen | G179: 0.1 | I179: = | J179: =24*365*G179 -> 876 | K179: Volllaststunden
A180: 180 | C180: Peakleistung der Windenergieanlagen | G180: =G175/G178 -> 1568.165272 | H180: [MW] | J180: Nennleistung je Anlage | M180: 2 | N180: [MW] | O180: => ca. | P180: =G180/M180 -> 784.0826358 | Q180: Anlagen
A181: 181 | J181: Fläche je Windenergieanlage | M181: 5000 | N181: [m²] | O181: => ca. | P181: =P180*M181/1000/1000 -> 3.920413179 | Q181: km²
A182: 182 | C182: Peakleistung der Solarenergieanlagen | G182: =G177/G179 -> 1568.165272 | H182: [MW] | J182: Peakleistung flächenbezogen | M182: 130 | N182: [Wp/m²] | O182: => ca. | P182: =G182/M182 -> 12.06280978 | Q182: km²
A183: 183
A184: 184 | B184: Investitionskosten Daten der regenerativen Erzeugungsanlagen
A185: 185 | C185: spezifische Kosten der Windenergieanlagen | G185: 1500 | H185: [€/kWp]
A186: 186 | C186: spezifische Kosten der Solarenergieanlagen | G186: 2800 | H186: [€/kWp] | M186: Kostenanteil an den Investitionskosten der Erzeugungsanlagen
A187: 187 | C187: Investitionskosten für die Windenergieanlagen | G187: =G180*G185/1000 -> 2352.247907 | H187: [M€] | M187: =G187/G$189 -> 0.3488372093
A188: 188 | C188: Investitionskosten für die Solarenergieanlagen | G188: =G182*G186/1000 -> 4390.86276 | H188: [M€] | M188: =G188/G$189 -> 0.6511627907
A189: 189 | C189: Investitionskosten der Erzeugungsanlagen | G189: =G187+G188 -> 6743.110668 | H189: [M€]
A190: 190
A191: 191 | B191: Betriebskosten der regenerativen Erzeugungsanlagen
A192: 192 | C192: jährliche Kosten der Windenergie bezogen auf die Investitionskosten | G192: 0.06 | M192: =G187*G192 -> 141.1348744 | N192: [M€/a]
A193: 193 | C193: jährliche Kosten der Solarenergie bezogen auf die Investitionskosten | G193: 0.02 | M193: =G188*G193 -> 87.81725521 | N193: [M€/a]
A194: 194
A195: 195 | B195: Investitionskostenanteile der Erzeugungsanlagen an den Stromkosten des Gesamtsystems | M195: Annuitäten bei einem Zissatz von
A196: 196 | C196: bei | E196: Jahresstromerzeugung | G196: =G$155 -> 5283.510684 | H196: [GWh] | M196: 0.02 | N196: 0.03 | O196: 0.05 | P196: 0.08
A197: 197 | C197: 10 | D197: =D$156 -> jähriger Betrachtung | G197: =$G$189/G$196/C197 -> 0.1276255708 | H197: =H$156 -> [€/kWh] | I197: = | J197: =G197*100 -> 12.76255708 | K197: =K$156 -> [ct/kWh] | M197: =$J197*'Kapitalkosten 2% Zins'!$F$7 -> 14.20855479 | N197: =$J197*'Kapitalkosten 3% Zins'!$F$7 -> 14.96154566 | O197: =$J197*'Kapitalkosten 5% Zins'!$F$7 -> 16.52814954 | P197: =$J197*'Kapitalkosten 8% Zins'!$F$7 -> 19.02003881
A198: 198 | C198: 15 | D198: =D197 -> jähriger Betrachtung | G198: =$G$189/G$196/C198 -> 0.08508371385 | H198: =H197 -> [€/kWh] | I198: = | J198: =G198*100 -> 8.508371385 | K198: =K197 -> [ct/kWh] | M198: =$J198*'Kapitalkosten 2% Zins'!$G$7 -> 9.932460046 | N198: =$J198*'Kapitalkosten 3% Zins'!$G$7 -> 10.69055594 | O198: =$J198*'Kapitalkosten 5% Zins'!$G$7 -> 12.29544749 | P198: =$J198*'Kapitalkosten 8% Zins'!$G$7 -> 14.91049543
A199: 199 | C199: 20 | D199: =D198 -> jähriger Betrachtung | G199: =$G$189/G$196/C199 -> 0.06381278539 | H199: =H198 -> [€/kWh] | I199: = | J199: =G199*100 -> 6.381278539 | K199: =K198 -> [ct/kWh] | M199: =$J199*'Kapitalkosten 2% Zins'!$H$7 -> 7.805069406 | N199: =$J199*'Kapitalkosten 3% Zins'!$H$7 -> 8.578225114 | O199: =$J199*'Kapitalkosten 5% Zins'!$H$7 -> 10.24105868 | P199: =$J199*'Kapitalkosten 8% Zins'!$H$7 -> 12.99904726
A200: 200 | C200: 25 | D200: =D199 -> jähriger Betrachtung | G200: =$G$189/G$196/C200 -> 0.05105022831 | H200: =H199 -> [€/kWh] | I200: = | J200: =G200*100 -> 5.105022831 | K200: =K199 -> [ct/kWh] | M200: =$J200*'Kapitalkosten 2% Zins'!$I$7 -> 6.536981735 | N200: =$J200*'Kapitalkosten 3% Zins'!$I$7 -> 7.329153653 | O200: =$J200*'Kapitalkosten 5% Zins'!$I$7 -> 9.055289498 | P200: =$J200*'Kapitalkosten 8% Zins'!$I$7 -> 11.95583584
... 60 more rows

Sheet Kapitalkosten 2% Zins
B2: Tilgungsverlauf in Abhängigkeit des Zinssatzes und der Tilgungsrate
B4: Zins | C4: 0.02
B5: Annuität | C5: 1.02 | D5: 0.51505 | E5: 0.21216 | F5: 0.11133 | G5: 0.077825 | H5: 0.061156 | I5: 0.05122 | J5: 0.04465 | K5: 0.031823
B6: Dauer | C6: 1 | D6: 2 | E6: 5 | F6: 10 | G6: 15 | H6: 20 | I6: 25 | J6: 30 | K6: 50 | L6: Jahre
B7: Kosten | C7: =C5*C6 -> 1.02 | D7: =D5*D6 -> 1.0301 | E7: 1.0608 | F7: 1.1133 | G7: 1.167375 | H7: 1.22312 | I7: =I5*I6 -> 1.2805 | J7: 1.3395 | K7: 1.59115
C8: Restwert
B9: Jahr
B10: 0 | C10: 1 | D10: 1 | E10: 1 | F10: 1 | G10: 1 | H10: 1 | I10: 1 | J10: 1 | K10: 1
B11: =B10+1 -> 1 | C11: =C10*(1+$C$4)-C$5 -> 0 | D11: =D10*(1+$C$4)-D$5 -> 0.50495 | E11: =E10*(1+$C$4)-E$5 -> 0.80784 | F11: =F10*(1+$C$4)-F$5 -> 0.90867 | G11: 0.942175 | H11: 0.958844 | I11: =I10*(1+$C$4)-I$5 -> 0.96878 | J11: 0.97535 | K11: 0.988177
B12: =B11+1 -> 2 | D12: =D11*(1+$C$4)-D$5 -> -1e-06 | E12: =E11*(1+$C$4)-E$5 -> 0.6118368 | F12: 0.8155134 | G12: 0.8831935 | H12: 0.91686488 | I12: 0.9369356 | J12: 0.950207 | K12: 0.97611754
B13: 3 | E13: =E12*(1+$C$4)-E$5 -> 0.411913536 | F13: 0.720493668 | G13: 0.82303237 | H13: 0.8740461776 | I13: 0.904454312 | J13: 0.92456114 | K13: 0.9638168908
B14: 4 | E14: =E13*(1+$C$4)-E$5 -> 0.2079918067 | F14: 0.6235735414 | G14: 0.7616680174 | H14: 0.8303711012 | I14: 0.8713233982 | J14: 0.8984023628 | K14: 0.9512702286
B15: 5 | E15: =E14*(1+$C$4)-E$5 -> -8.3571456e-06 | F15: 0.5247150122 | G15: 0.6990763777 | H15: 0.7858225232 | I15: 0.8375298662 | J15: 0.8717204101 | K15: 0.9384726332
B16: 6 | F16: 0.4238793124 | G16: 0.6352329053 | H16: 0.7403829736 | I16: 0.8030604635 | J16: 0.8445048183 | K16: 0.9254190859
B17: 7 | F17: 0.3210268987 | G17: 0.5701125634 | H17: 0.6940346331 | I17: 0.7679016728 | J17: 0.8167449146 | K17: 0.9121044676
B18: 8 | F18: 0.2161174367 | G18: 0.5036898147 | H18: 0.6467593258 | I18: 0.7320397063 | J18: 0.7884298129 | K18: 0.8985235569
B19: 9 | F19: 0.1091097854 | G19: 0.435938611 | H19: 0.5985385123 | I19: 0.6954605004 | J19: 0.7595484092 | K19: 0.8846710281
B20: 10 | F20: -3.801890606e-05 | G20: 0.3668323832 | H20: 0.5493532825 | I20: 0.6581497104 | J20: 0.7300893774 | K20: 0.8705414486
B21: 11 | G21: 0.2963440309 | H21: 0.4991843482 | I21: 0.6200927046 | J21: 0.7000411649 | K21: 0.8561292776
B22: 12 | G22: 0.2244459115 | H22: 0.4480120351 | I22: 0.5812745587 | J22: 0.6693919882 | K22: 0.8414288631
B23: 13 | G23: 0.1511098297 | H23: 0.3958162759 | I23: 0.5416800499 | J23: 0.638129828 | K23: 0.8264344404
B24: 14 | G24: 0.07630702629 | H24: 0.3425766014 | I24: 0.5012936509 | J24: 0.6062424245 | K24: 0.8111401292
B25: 15 | G25: 8.16682036e-06 | H25: 0.2882721334 | I25: 0.4600995239 | J25: 0.573717273 | K25: 0.7955399318
B26: 16 | H26: 0.2328815761 | I26: 0.4180815144 | J26: 0.5405416185 | K26: 0.7796277304
B27: 17 | H27: =H26*(1+$C$4)-H$5 -> 0.1763832076 | I27: 0.3752231446 | J27: 0.5067024508 | K27: 0.763397285
B28: 18 | H28: 0.1187548717 | I28: 0.3315076075 | J28: 0.4721864999 | K28: 0.7468422307
B29: 19 | H29: 0.05997396917 | I29: 0.2869177597 | J29: 0.4369802299 | K29: 0.7299560754
B30: 20 | H30: 1.744855574e-05 | I30: 0.2414361149 | J30: 0.4010698345 | K30: 0.7127321969
B31: 21 | I31: 0.1950448372 | J31: 0.3644412311 | K31: 0.6951638408
B32: 22 | I32: 0.1477257339 | J32: 0.3270800558 | K32: 0.6772441176
B33: 23 | I33: 0.0994602486 | J33: 0.2889716569 | K33: 0.658966
B34: 24 | I34: 0.05022945357 | J34: 0.25010109 | K34: 0.64032232
B35: 25 | I35: 1.404264056e-05 | J35: 0.2104531118 | K35: 0.6213057664
B36: 26 | J36: 0.1700121741 | K36: 0.6019088817
B37: 27 | J37: 0.1287624175 | K37: 0.5821240593
B38: 28 | J38: 0.08668766589 | K38: 0.5619435405
B39: 29 | J39: 0.04377141921 | K39: 0.5413594113
B40: 30 | J40: -3.152407382e-06 | K40: 0.5203635996
B41: 31 | K41: 0.4989478715
B42: 32 | K42: 0.477103829
B43: 33 | K43: =K42*(1+$C$4)-K$5 -> 0.4548229056
B44: 34 | K44: 0.4320963637
B45: 35 | K45: 0.4089152909
B46: 36 | K46: 0.3852705968
B47: 37 | K47: 0.3611530087
B48: 38 | K48: 0.3365530689
B49: 39 | K49: 0.3114611302
B50: 40 | K50: 0.2858673529
B51: 41 | K51: 0.2597616999
B52: 42 | K52: 0.2331339339
B53: 43 | K53: 0.2059736126
B54: 44 | K54: 0.1782700848
B55: 45 | K55: 0.1500124865
B56: 46 | K56: 0.1211897363
B57: 47 | K57: 0.09179053099
B58: 48 | K58: 0.06180334161
B59: 49 | K59: 0.03121640844
B60: 50 | K60: 1.773661314e-05
B61: 51
B62: 52
B63: 53
B64: 54
B65: 55
B66: =B65+1 -> 56
B67: =B66+1 -> 57
B68: =B67+1 -> 58
B69: =B68+1 -> 59
B70: =B69+1 -> 60

Sheet Kapitalkosten 3% Zins
B2: Tilgungsverlauf in Abhängigkeit des Zinssatzes und der Tilgungsrate
B4: Zins | C4: 0.03
B5: Annuität | C5: 1.03 | D5: 0.52259 | E5: 0.21835 | F5: 0.11723 | G5: 0.083765 | H5: 0.067214 | I5: 0.057427 | J5: 0.05102 | K5: 0.0388655
B6: Dauer | C6: 1 | D6: 2 | E6: 5 | F6: 10 | G6: 15 | H6: 20 | I6: 25 | J6: 30 | K6: 50 | L6: Jahre
B7: Kosten | C7: =C5*C6 -> 1.03 | D7: =D5*D6 -> 1.04518 | E7: 1.09175 | F7: 1.1723 | G7: 1.256475 | H7: 1.34428 | I7: 1.435675 | J7: 1.5306 | K7: 1.943275
C8: Restwert
B9: Jahr
B10: 0 | C10: 1 | D10: 1 | E10: 1 | F10: 1 | G10: 1 | H10: 1 | I10: 1 | J10: 1 | K10: 1
B11: =B10+1 -> 1 | C11: =C10*(1+$C$4)-C$5 -> 0 | D11: =D10*(1+$C$4)-D$5 -> 0.50741 | E11: =E10*(1+$C$4)-E$5 -> 0.81165 | F11: =F10*(1+$C$4)-F$5 -> 0.91277 | G11: 0.946235 | H11: 0.962786 | I11: 0.972573 | J11: 0.97898 | K11: 0.9911345
B12: =B11+1 -> 2 | D12: =D11*(1+$C$4)-D$5 -> 4.23e-05 | E12: 0.6176495 | F12: 0.8229231 | G12: 0.89085705 | H12: 0.92445558 | I12: 0.94432319 | J12: 0.9573294 | K12: 0.982003035
B13: 3 | E13: 0.417828985 | F13: 0.730380793 | G13: 0.8338177615 | H13: 0.8849752474 | I13: 0.9152258857 | J13: 0.935029282 | K13: 0.972597626
B14: 4 | E14: 0.2120138546 | F14: 0.6350622168 | G14: 0.7750672943 | H14: 0.8443105048 | I14: 0.8852556623 | J14: 0.9120601605 | K14: 0.9629100548
B15: 5 | E15: 2.42701865e-05 | F15: 0.5368840833 | G15: 0.7145543132 | H15: 0.80242582 | I15: 0.8543863321 | J15: 0.8884019653 | K15: 0.9529318565
B16: 6 | F16: 0.4357606058 | G16: 0.6522259426 | H16: 0.7592845946 | I16: 0.8225909221 | J16: 0.8640340242 | K16: 0.9426543122
B17: 7 | F17: 0.331603424 | G17: 0.5880277208 | H17: 0.7148491324 | I17: 0.7898416498 | J17: 0.838935045 | K17: 0.9320684415
B18: 8 | F18: 0.2243215267 | G18: 0.5219035525 | H18: 0.6690806064 | I18: 0.7561098993 | J18: 0.8130830963 | K18: 0.9211649948
B19: 9 | F19: 0.1138211725 | G19: 0.453795659 | H19: 0.6219390246 | I19: 0.7213661962 | J19: 0.7864555892 | K19: 0.9099344446
B20: 10 | F20: 5.807660409e-06 | G20: 0.3836445288 | H20: 0.5733831953 | I20: 0.6855801821 | J20: 0.7590292569 | K20: 0.898366978
B21: 11 | G21: 0.3113888647 | H21: 0.5233706912 | I21: 0.6487205876 | J21: 0.7307801346 | K21: 0.8864524873
B22: 12 | G22: 0.2369655306 | H22: 0.4718578119 | I22: 0.6107552052 | J22: 0.7016835386 | K22: 0.8741805619
B23: 13 | G23: 0.1603094965 | H23: 0.4187995463 | I23: 0.5716508614 | J23: 0.6717140448 | K23: 0.8615404788
B24: 14 | G24: 0.08135378144 | H24: 0.3641495326 | I24: 0.5313733872 | J24: 0.6408454661 | K24: 0.8485211931
B25: 15 | G25: 2.9394882e-05 | H25: 0.3078600186 | I25: 0.4898875888 | J25: 0.6090508301 | K25: 0.8351113289
B26: 16 | H26: 0.2498818192 | I26: 0.4471572165 | J26: 0.576302355 | K26: 0.8212991688
B27: 17 | H27: =H26*(1+$C$4)-H$5 -> 0.1901642738 | I27: 0.403144933 | J27: 0.5425714257 | K27: 0.8070726439
B28: 18 | H28: 0.128655202 | I28: 0.357812281 | J28: 0.5078285684 | K28: 0.7924193232
B29: 19 | H29: 0.06530085803 | I29: 0.3111196494 | J29: 0.4720434255 | K29: 0.7773264029
B30: 20 | H30: 4.588376708e-05 | I30: 0.2630262389 | J30: 0.4351847282 | K30: 0.761780695
B31: 21 | I31: 0.2134900261 | J31: 0.3972202701 | K31: 0.7457686158
B32: 22 | I32: 0.1624677268 | J32: =J31*(1+$C$4)-J$5 -> 0.3581168782 | K32: 0.7292761743
B33: 23 | I33: 0.1099147586 | J33: 0.3178403845 | K33: 0.7122889595
B34: 24 | I34: 0.0557852014 | J34: 0.2763555961 | K34: 0.6947921283
B35: 25 | I35: 3.17574458e-05 | J35: 0.233626264 | K35: 0.6767703922
B36: 26 | J36: =J35*(1+$C$4)-J$5 -> 0.1896150519 | K36: 0.6582080039
B37: 27 | J37: 0.1442835034 | K37: 0.639088744
B38: 28 | J38: 0.09759200853 | K38: 0.6193959064
B39: 29 | J39: 0.04949976879 | K39: 0.5991122835
B40: 30 | J40: -3.523814689e-05 | K40: 0.5782201521
B41: 31 | K41: =K40*(1+$C$4)-K$5 -> 0.5567012566
B42: 32 | K42: 0.5345367943
B43: 33 | K43: 0.5117073981
B44: 34 | K44: 0.4881931201
B45: 35 | K45: 0.4639734137
B46: 36 | K46: 0.4390271161
B47: 37 | K47: 0.4133324296
B48: 38 | K48: 0.3868669025
B49: 39 | K49: 0.3596074095
B50: 40 | K50: 0.3315301318
B51: 41 | K51: 0.3026105358
B52: 42 | K52: 0.2728233519
B53: 43 | K53: 0.2421425524
B54: 44 | K54: 0.210541329
B55: 45 | K55: 0.1779920689
B56: 46 | K56: 0.1444663309
B57: 47 | K57: 0.1099348209
B58: 48 | K58: 0.07436736548
B59: 49 | K59: 0.03773288645
B60: 50 | K60: -6.269615881e-07
B61: 51
B62: 52
B63: 53
B64: 54
B65: 55
B66: 56
B67: 57
B68: 58
B69: 59
B70: 60

Sheet Kapitalkosten 5% Zins
B2: Tilgungsverlauf in Abhängigkeit des Zinssatzes und der Tilgungsrate
B4: Zins | C4: 0.05
B5: Annuität | C5: 1.05 | D5: 0.5378 | E5: 0.23097 | F5: 0.129505 | G5: 0.09634 | H5: 0.080243 | I5: 0.070952 | J5: 0.065051 | K5: 0.0547769
B6: Dauer | C6: 1 | D6: 2 | E6: 5 | F6: 10 | G6: 15 | H6: 20 | I6: 25 | J6: 30 | K6: 50 | L6: Jahre
B7: Kosten | C7: =C5*C6 -> 1.05 | D7: =D5*D6 -> 1.0756 | E7: 1.15485 | F7: 1.29505 | G7: 1.4451 | H7: 1.60486 | I7: 1.7738 | J7: 1.95153 | K7: 2.738845
C8: Restwert
B9: Jahr
B10: 0 | C10: 1 | D10: 1 | E10: 1 | F10: 1 | G10: 1 | H10: 1 | I10: 1 | J10: 1 | K10: 1
B11: =B10+1 -> 1 | C11: =C10*(1+$C$4)-C$5 -> 0 | D11: =D10*(1+$C$4)-D$5 -> 0.5122 | E11: =E10*(1+$C$4)-E$5 -> 0.81903 | F11: =F10*(1+$C$4)-F$5 -> 0.920495 | G11: 0.95366 | H11: 0.969757 | I11: 0.979048 | J11: 0.984949 | K11: 0.9952231
B12: =B11+1 -> 2 | D12: =D11*(1+$C$4)-D$5 -> 1e-05 | E12: 0.6290115 | F12: 0.83701475 | G12: 0.905003 | H12: 0.93800185 | I12: 0.9570484 | J12: 0.96914545 | K12: 0.990207355
B13: 3 | E13: 0.429492075 | F13: 0.7493604875 | G13: 0.85391315 | H13: 0.9046589425 | I13: 0.93394882 | J13: 0.9525517225 | K13: 0.9849408228
B14: 4 | E14: 0.2199966788 | F14: 0.6573235119 | G14: 0.8002688075 | H14: 0.8696488896 | I14: 0.909694261 | J14: 0.9351283086 | K14: 0.9794109639
B15: 5 | E15: 2.65126875e-05 | F15: 0.5606846875 | G15: 0.7439422479 | H15: 0.8328883341 | I15: 0.8842269741 | J15: 0.9168337241 | K15: 0.9736046121
B16: 6 | F16: 0.4592139218 | G16: 0.6847993603 | H16: 0.7942897508 | I16: 0.8574863228 | J16: 0.8976244103 | K16: 0.9675079427
B17: 7 | F17: 0.3526696179 | G17: 0.6226993283 | H17: 0.7537612384 | I17: 0.8294086389 | J17: 0.8774546308 | K17: 0.9611064398
B18: 8 | F18: 0.2407980988 | G18: 0.5574942947 | H18: 0.7112063003 | I18: 0.7999270708 | J18: 0.8562763623 | K18: 0.9543848618
B19: 9 | F19: 0.1233330038 | G19: 0.4890290094 | H19: 0.6665236153 | I19: 0.7689714244 | J19: 0.8340391804 | K19: 0.9473272049
B20: 10 | F20: -5.346038809e-06 | G20: 0.4171404599 | H20: 0.619606796 | I20: 0.7364679956 | J20: 0.8106901394 | K20: 0.9399166651
B21: 11 | G21: 0.3416574829 | H21: 0.5703441358 | I21: 0.7023393954 | J21: 0.7861736464 | K21: 0.9321355984
B22: 12 | G22: 0.262400357 | H22: 0.5186183426 | I22: 0.6665043651 | J22: 0.7604313287 | K22: 0.9239654783
B23: 13 | G23: 0.1791803749 | H23: 0.4643062598 | I23: 0.6288775834 | J23: 0.7334018952 | K23: 0.9153868522
B24: 14 | G24: 0.09179939364 | H24: 0.4072785728 | I24: 0.5893694626 | J24: 0.7050209899 | K24: 0.9063792949
B25: 15 | G25: 4.936332155e-05 | H25: 0.3473995014 | I25: 0.5478859357 | J25: 0.6752210394 | K25: 0.8969213596
B26: 16 | H26: 0.2845264765 | I26: 0.5043282325 | J26: 0.6439310914 | K26: 0.8869905276
B27: 17 | H27: =H26*(1+$C$4)-H$5 -> 0.2185098003 | I27: 0.4585926441 | J27: 0.611076646 | K27: 0.876563154
B28: 18 | H28: 0.1491922903 | I28: 0.4105702763 | J28: 0.5765794783 | K28: 0.8656144117
B29: 19 | H29: 0.07640890483 | I29: 0.3601467901 | J29: 0.5403574522 | K29: 0.8541182322
B30: 20 | H30: -1.364993365e-05 | I30: 0.3072021296 | J30: 0.5023243248 | K30: 0.8420472438
B31: 21 | I31: 0.2516102361 | J31: 0.462389541 | K31: 0.829372706
B32: 22 | I32: 0.1932387479 | J32: 0.4204580181 | K32: 0.8160644413
B33: 23 | I33: 0.1319486853 | J33: 0.376429919 | K33: 0.8020907634
B34: 24 | I34: 0.06759411959 | J34: 0.3302004149 | K34: 0.7874184016
B35: 25 | I35: 2.182556552e-05 | J35: 0.2816594357 | K35: 0.7720124217
B36: 26 | J36: 0.2306914075 | K36: 0.7558361427
B37: 27 | J37: 0.1771749778 | K37: 0.7388510499
B38: 28 | J38: 0.1209827267 | K38: 0.7210167024
B39: 29 | J39: 0.06198086308 | K39: 0.7022906375
B40: 30 | J40: 2.890623215e-05 | K40: 0.6826282694
B41: 31 | K41: 0.6619827828
B42: 32 | K42: 0.640305022
B43: 33 | K43: =K42*(1+$C$4)-K$5 -> 0.6175433731
B44: 34 | K44: 0.5936436417
B45: 35 | K45: 0.5685489238
B46: 36 | K46: 0.54219947
B47: 37 | K47: 0.5145325435
B48: 38 | K48: 0.4854822707
B49: 39 | K49: 0.4549794842
B50: 40 | K50: 0.4229515584
B51: 41 | K51: 0.3893222363
B52: 42 | K52: 0.3540114482
B53: 43 | K53: 0.3169351206
B54: 44 | K54: 0.2780049766
B55: 45 | K55: 0.2371283254
B56: 46 | K56: 0.1942078417
B57: 47 | K57: 0.1491413338
B58: 48 | K58: 0.1018215005
B59: 49 | K59: 0.05213567549
B60: 50 | K60: -3.444073133e-05
B61: 51
B62: 52
B63: 53
B64: 54
B65: 55
B66: 56
B67: 57
B68: 58
B69: 59
B70: 60

Sheet Kapitalkosten 8% Zins
B2: Tilgungsverlauf in Abhängigkeit des Zinssatzes und der Tilgungsrate
B4: Zins | C4: 0.08
B5: Annuität | C5: 1.08 | D5: 0.56075 | E5: 0.25045 | F5: 0.14903 | G5: 0.11683 | H5: 0.101853 | I5: 0.093679 | J5: 0.088827 | K5: 0.0817429
B6: Dauer | C6: 1 | D6: 2 | E6: 5 | F6: 10 | G6: 15 | H6: 20 | I6: 25 | J6: 30 | K6: 50 | L6: Jahre
B7: Kosten | C7: =C5*C6 -> 1.08 | D7: =D5*D6 -> 1.1215 | E7: 1.25225 | F7: 1.4903 | G7: 1.75245 | H7: 2.03706 | I7: 2.341975 | J7: 2.66481 | K7: 4.087145
C8: Restwert
B9: Jahr
B10: 0 | C10: 1 | D10: 1 | E10: 1 | F10: 1 | G10: 1 | H10: 1 | I10: 1 | J10: 1 | K10: 1
B11: =B10+1 -> 1 | C11: =C10*(1+$C$4)-C$5 -> 0 | D11: =D10*(1+$C$4)-D$5 -> 0.51925 | E11: =E10*(1+$C$4)-E$5 -> 0.82955 | F11: =F10*(1+$C$4)-F$5 -> 0.93097 | G11: 0.96317 | H11: 0.978147 | I11: 0.986321 | J11: 0.991173 | K11: 0.9982571
B12: =B11+1 -> 2 | D12: =D11*(1+$C$4)-D$5 -> 4e-05 | E12: 0.645464 | F12: 0.8564176 | G12: 0.9233936 | H12: 0.95454576 | I12: 0.97154768 | J12: 0.98163984 | K12: 0.996374768
B13: 3 | E13: 0.44665112 | F13: 0.775901008 | G13: 0.880435088 | H13: 0.9290564208 | I13: 0.9555924944 | J13: 0.9713440272 | K13: 0.9943418494
B14: 4 | E14: 0.2319332096 | F14: 0.6889430886 | G14: 0.834039895 | H14: 0.9015279345 | I14: 0.938360894 | J14: 0.9602245494 | K14: 0.9921462974
B15: 5 | E15: 3.7866368e-05 | F15: 0.5950285357 | G15: 0.7839330866 | H15: 0.8717971692 | I15: 0.9197507655 | J15: 0.9482155133 | K15: 0.9897751012
B16: 6 | F16: 0.4936008186 | G16: 0.7298177336 | H16: 0.8396879428 | I16: 0.8996518267 | J16: 0.9352457544 | K16: 0.9872142093
B17: 7 | F17: 0.3840588841 | G17: 0.6713731523 | H17: 0.8050099782 | I17: 0.8779449728 | J17: 0.9212384147 | K17: 0.984448446
B18: 8 | F18: 0.2657535948 | G18: 0.6082530044 | H18: 0.7675577764 | I18: 0.8545015707 | J18: 0.9061104879 | K18: 0.9814614217
B19: 9 | F19: 0.1379838824 | G19: 0.5400832448 | H19: 0.7271093985 | I19: 0.8291826963 | J19: 0.889772327 | K19: 0.9782354354
B20: 10 | F20: -7.407021755e-06 | G20: 0.4664599044 | H20: 0.6834251504 | I20: 0.801838312 | J20: 0.8721271131 | K20: 0.9747513703
B21: 11 | G21: 0.3869466967 | H21: 0.6362461625 | I21: 0.772306377 | J21: 0.8530702822 | K21: 0.9709885799
B22: 12 | G22: 0.3010724325 | H22: 0.5852928555 | I22: 0.7404118872 | J22: 0.8324889047 | K22: 0.9669247663
B23: 13 | G23: 0.2083282271 | H23: 0.5302632839 | I23: 0.7059658381 | J23: 0.8102610171 | K23: 0.9625358476
B24: 14 | G24: 0.1081644852 | H24: 0.4708313466 | I24: 0.6687641052 | J24: 0.7862548985 | K24: 0.9577958154
B25: 15 | G25: -1.235594903e-05 | H25: 0.4066448543 | I25: 0.6285862336 | J25: 0.7603282904 | K25: 0.9526765806
B26: 16 | H26: 0.3373234427 | I26: 0.5851941323 | J26: 0.7323275536 | K26: 0.9471478071
B27: 17 | H27: =H26*(1+$C$4)-H$5 -> 0.2624563181 | I27: 0.5383306629 | J27: 0.7020867579 | K27: 0.9411767317
B28: 18 | H28: 0.1815998236 | I28: 0.4877181159 | J28: 0.6694266985 | K28: 0.9347279702
B29: 19 | H29: 0.09427480944 | I29: 0.4330565652 | J29: 0.6341538344 | K29: 0.9277633078
B30: 20 | H30: -3.620580673e-05 | I30: 0.3740220904 | J30: 0.5960591411 | K30: 0.9202414724
B31: 21 | I31: 0.3102648576 | J31: 0.5549168724 | K31: 0.9121178902
B32: 22 | I32: 0.2414070462 | J32: 0.5104832222 | K32: 0.9033444214
B33: 23 | I33: 0.1670406099 | J33: 0.46249488 | K33: 0.8938690752
B34: 24 | I34: 0.08672485869 | J34: 0.4106674704 | K34: 0.8836357012
B35: 25 | I35: -1.615261354e-05 | J35: 0.354693868 | K35: 0.8725836573
B36: 26 | J36: 0.2942423775 | K36: 0.8606474498
B37: 27 | J37: 0.2289547677 | K37: 0.8477563458
B38: 28 | J38: 0.1584441491 | K38: 0.8338339535
B39: 29 | J39: 0.08229268102 | K39: 0.8187977698
B40: 30 | J40: 4.909550187e-05 | K40: 0.8025586914
B41: 31 | K41: 0.7850204867
B42: 32 | K42: 0.7660792256
B43: 33 | K43: =K42*(1+$C$4)-K$5 -> 0.7456226636
B44: 34 | K44: 0.7235295767
B45: 35 | K45: 0.6996690429
B46: 36 | K46: 0.6738996663
B47: 37 | K47: 0.6460687396
B48: 38 | K48: 0.6160113388
B49: 39 | K49: 0.5835493459
B50: 40 | K50: 0.5484903935
B51: 41 | K51: 0.510626725
B52: 42 | K52: 0.469733963
B53: 43 | K53: 0.4255697801
B54: 44 | K54: 0.3778724625
B55: 45 | K55: 0.3263593595
B56: 46 | K56: 0.2707252082
B57: 47 | K57: 0.2106403249
B58: 48 | K58: 0.1457486509
B59: 49 | K59: 0.07566564295
B60: 50 | K60: -2.400561632e-05
B61: 51
B62: 52
B63: 53
B64: 54
B65: 55
B66: 56
B67: 57
B68: 58
B69: 59
B70: 60
